bitfinex/quotes_ETHUSD_20250520
["timestamp","ask_amount","ask_price","bid_price","bid_amount"]
[1747753014411,17.16691053,2473.8,2473.7,25.445]
[1747753014613,17.5615203,2473.8,2473.7,17.456]
[1747753014799,17.5615203,2473.8,2473.7,25.445]
[1747753016120,14.96286397,2473.8,2473.7,25.445]
[1747753016416,14.15236397,2473.8,2473.7,25.445]
[1747753016778,4.04236397,2473.8,2473.7,25.445]
[1747753018315,4.04236397,2473.8,2473.7,25.446]
[1747753019029,4.79556397,2473.8,2473.7,17.456]
[1747753019176,4.79556397,2473.8,2473.7,25.446]
[1747753019722,6.99961053,2473.8,2473.7,25.446]
[1747753020225,6.99961053,2473.8,2473.7,17.456]
[1747753020580,6.99961053,2473.8,2473.7,25.446]
[1747753021622,4.04236397,2473.8,2473.7,25.446]
[1747753023982,4.04236397,2473.8,2473.7,25.43]
[1747753025315,4.04236397,2473.8,2473.7,27.973]
[1747753025812,3.99702242,2473.8,2473.7,27.973]
[1747753027220,3.77182237,2473.8,2473.7,27.973]
[1747753027604,3.77182237,2473.8,2473.7,25.43]
[1747753030450,3.77182237,2473.8,2473.7,17.456]
[1747753030613,3.77182237,2473.8,2473.7,25.43]
[1747753034551,3.77182237,2473.8,2473.7,17.456]
[1747753034755,3.77182237,2473.8,2473.7,25.43]
[1747753036464,3.77182237,2473.8,2473.7,28.7574]
[1747753038348,3.77182237,2473.8,2473.7,25.43]
[1747753039244,3.77182237,2473.8,2473.7,26.235]
[1747753040329,3.77182237,2473.8,2473.7,17.456]
[1747753040536,4.54632237,2473.8,2473.7,25.429]
[1747753041467,4.04318117,2473.3,2473.2,0.4647553]
[1747753041677,4.04318117,2473.3,2473.2,7.973]
[1747753042775,4.04318117,2473.3,2473.2,8.49227654]
[1747753042987,4.04318117,2473.3,2473.2,15.90380554]
[1747753043191,4.04318117,2473.3,2473.2,9.32547654]
[1747753043558,4.04318117,2473.3,2473.2,9.71215314]
[1747753045497,4.04318117,2473.3,2473.2,9.1928766]
[1747753046296,4.04318117,2473.3,2473.2,8.3606766]
[1747753046784,4.83998117,2473.3,2473.2,8.3606766]
[1747753048311,4.83998117,2473.3,2473.2,7.974]
[1747753048799,4.04318117,2473.3,2473.2,7.974]
[1747753057217,4.04318117,2473.3,2472.8,17.453]
[1747753057218,4.04383517,2472.9,2472.8,17.453]
[1747753057385,6.24788173,2472.9,2472.8,25.414]
[1747753057711,4.80963517,2472.9,2472.8,25.414]
[1747753059890,7.01368173,2472.9,2472.8,17.453]
[1747753060085,17.12368173,2472.9,2472.8,25.415]
[1747753060292,0.8262,2472.3,2471.0,0.63196582]
[1747753060493,4.04628955,2471.4,2471.3,1.40301191]
[1747753060713,4.04628955,2471.4,2471.3,8.60381191]
[1747753061191,4.04628955,2471.4,2471.3,7.962]
[1747753061630,4.04628955,2471.4,2471.1,17.457]
[1747753061631,4.04661702,2471.2,2471.1,17.457]
[1747753061832,6.25066358,2471.2,2471.1,25.419]
[1747753062219,4.04776361,2470.5,2470.4,18.2831]
[1747753062418,4.04776361,2470.5,2470.4,25.419]
[1747753063296,6.25181017,2470.5,2470.4,25.419]
[1747753063709,4.04776361,2470.5,2470.4,25.419]
[1747753063912,4.0482552,2470.2,2470.1,7.964]
[1747753064110,9.04815089,2470.2,2470.1,7.964]
[1747753064339,9.59815089,2470.2,2470.1,7.964]
[1747753064544,9.04815089,2470.2,2470.1,7.964]
[1747753064844,4.8021552,2470.2,2470.1,7.964]
[1747753065341,4.0482552,2470.2,2470.1,7.964]
[1747753066914,4.0482552,2470.2,2470.1,8.7604]
[1747753067238,4.04811359,2470.3,2470.1,8.7604]
[1747753067239,4.04817438,2470.3,2470.1,9.5452]
[1747753067401,4.04789086,2470.5,2470.2,0.7662]
[1747753067602,4.04802509,2470.4,2470.2,0.7662]
[1747753068105,4.04776361,2470.5,2470.4,0.7662]
[1747753068320,4.04776361,2470.5,2470.4,19.10642]
[1747753068520,4.04776361,2470.5,2470.4,27.07242]
[1747753069427,4.04776361,2470.5,2470.4,19.10642]
[1747753069631,4.04776361,2470.5,2470.4,27.07342]
[1747753070545,4.04776361,2470.5,2470.4,26.2002]
[1747753070714,4.04776361,2470.5,2470.4,25.434]
[1747753072144,4.04776361,2470.5,2470.4,31.714087]
[1747753072343,4.04776361,2470.5,2470.4,29.971434]
[1747753072546,4.04776361,2470.5,2470.4,26.2386]
[1747753072712,4.04760758,2470.6,2470.4,41.826183]
[1747753072912,4.04760758,2470.6,2470.5,13.836871]
[1747753073122,4.04760758,2470.6,2470.5,4.481029]
[1747753073746,4.04658947,2471.3,2470.5,5.031029]
[1747753073947,10.9297,2471.9,2470.8,0.8269]
[1747753074153,4.04724978,2470.9,2470.8,0.8269]
[1747753074317,4.04724978,2470.9,2470.8,8.7949]
[1747753074845,4.04724978,2470.9,2470.8,9.2065518]
[1747753077909,4.04724978,2470.9,2470.8,8.7939]
[1747753078854,4.04724978,2470.9,2470.8,14.827625]
[1747753079737,4.04724978,2470.9,2470.8,8.7939]
[1747753079920,4.04724978,2470.9,2470.8,7.967]
[1747753080115,4.04776361,2470.5,2470.4,17.467]
[1747753080328,4.04776361,2470.5,2470.4,25.434]
[1747753080970,4.04776361,2470.5,2470.4,44.435999]
[1747753081130,4.04759977,2470.6,2470.5,1.3288]
[1747753081434,4.04759977,2470.6,2470.5,9.692262]
[1747753083786,4.04741137,2470.8,2470.7,1.3393]
[1747753083950,4.04741137,2470.8,2470.7,9.268796]
[1747753084150,4.04741137,2470.8,2470.7,9.7959096]
[1747753084369,4.04741137,2470.8,2470.7,6.4267386]
[1747753084672,4.04741137,2470.8,2470.7,5.8356196]
[1747753084973,4.04741137,2470.8,2470.7,5.8168196]
[1747753086136,4.04741137,2470.8,2470.7,11.458962]
[1747753086341,4.04741137,2470.8,2470.7,8.7285]
[1747753086552,4.04741137,2470.8,2470.7,7.958]
[1747753087693,4.85491137,2470.8,2470.7,7.958]
[1747753089374,4.85491137,2470.8,2470.4,17.467]
[1747753089375,4.84546361,2470.5,2470.4,17.467]
[1747753089573,4.84546361,2470.5,2470.4,25.424]
[1747753091382,4.84546361,2470.5,2470.4,17.467]
[1747753091583,4.84546361,2470.5,2470.4,25.425]
[1747753091810,14.95546361,2470.5,2470.4,25.425]
[1747753092083,4.04956669,2469.4,2469.3,0.8273]
[1747753092252,4.04956669,2469.4,2469.3,26.2573]
[1747753092657,4.04956669,2469.4,2469.3,31.670664]
[1747753093095,4.04956669,2469.4,2469.3,32.220664]
[1747753093450,4.04956669,2469.4,2469.3,31.670664]
[1747753093645,4.04956669,2469.4,2469.3,18.2993]
[1747753093886,4.04956669,2469.4,2469.3,26.64411244]
[1747753095086,4.04956669,2469.4,2469.3,26.2583]
[1747753097211,4.04956669,2469.4,2469.3,25.431]
[1747753099309,4.04956669,2469.4,2469.3,25.432]
[1747753099808,4.86706669,2469.4,2469.3,25.432]
[1747753107114,4.04956669,2469.4,2469.3,25.432]
[1747753109214,4.04956669,2469.4,2469.3,28.05836]
[1747753109595,4.04956669,2469.4,2469.3,29.36336]
[1747753109791,4.04940271,2469.5,2469.4,1.305]
[1747753110101,4.04940271,2469.5,2469.4,8.717]
[1747753111006,4.04940271,2469.5,2469.4,9.267]
[1747753111340,4.04940271,2469.5,2469.4,4.298436]
[1747753111489,4.04940271,2469.5,2469.4,8.717]
[1747753112917,4.04940271,2469.5,2469.4,8.717]
[1747753114468,4.04956669,2469.4,2469.3,17.472]
[1747753114836,4.04956669,2469.4,2469.3,25.426]
[1747753118630,4.05026024,2469.0,2468.7,0.7727]
[1747753118862,4.05055087,2468.8,2468.7,0.7727]
[1747753119159,4.05071495,2468.7,2468.6,0.48130991]
[1747753119854,4.05071495,2468.7,2468.4,7.954]
[1747753119855,4.05104314,2468.5,2468.4,7.954]
[1747753121040,4.05186385,2468.0,2467.9,17.48]
[1747753121240,4.05186385,2468.0,2467.9,25.435]
[1747753123051,4.05186385,2468.0,2467.9,17.48]
[1747753123226,4.05186385,2468.0,2467.9,25.437]
[1747753123829,4.05186385,2468.0,2467.9,28.8071]
[1747753125958,4.05186385,2468.0,2467.9,20.8501]
[1747753126144,4.05186385,2468.0,2467.9,28.8071]
[1747753127720,4.05186385,2468.0,2467.9,29.3571]
[1747753127926,4.05186385,2468.0,2467.9,28.8071]
[1747753128236,4.05186385,2468.0,2467.9,31.967064]
[1747753128641,4.05186385,2468.0,2467.9,31.3854]
[1747753128861,4.05186385,2468.0,2467.9,20.8501]
[1747753129029,4.05186385,2468.0,2467.9,28.8071]
[1747753129229,4.05186385,2468.0,2467.9,26.2634]
[1747753129429,4.05186385,2468.0,2467.9,28.5857]
[1747753129633,4.05186385,2468.0,2467.9,26.2634]
[1747753131266,4.05186385,2468.0,2467.9,17.48]
[1747753131563,4.05186385,2468.0,2467.9,25.437]
[1747753131757,4.05186385,2468.0,2467.9,17.48]
[1747753131958,4.05186385,2468.0,2467.9,25.438]
[1747753132864,4.05186385,2468.0,2467.9,27.4979894]
[1747753133265,4.05186385,2468.0,2467.9,28.0479894]
[1747753134038,4.05186385,2468.0,2467.9,27.4979894]
[1747753134260,4.05186385,2468.0,2467.9,25.438]
[1747753136357,4.05186385,2468.0,2467.9,17.48]
[1747753136557,4.05186385,2468.0,2467.9,25.438]
[1747753137965,4.05186385,2468.0,2467.9,25.988]
[1747753138770,4.05186385,2468.0,2467.9,35.30185]
[1747753139072,4.05186385,2468.0,2467.9,24.006455]
[1747753139271,4.05186385,2468.0,2467.9,28.3562]
[1747753139798,4.05186385,2468.0,2467.9,28.5828]
[1747753140306,4.05186385,2468.0,2467.9,29.1328]
[1747753141083,4.05186385,2468.0,2467.9,28.5828]
[1747753141482,4.05055087,2468.8,2468.0,0.55]
[1747753141686,0.755,2468.9,2468.1,2.91328]
[1747753141874,4.05140766,2468.3,2468.2,0.55]
[1747753142076,4.05122057,2468.4,2468.3,0.8316]
[1747753142310,4.05122057,2468.4,2468.3,10.970517]
[1747753142808,4.05122057,2468.4,2468.3,8.213007]
[1747753143006,4.05122057,2468.4,2468.3,8.0269227]
[1747753144012,4.05122057,2468.4,2468.3,7.7815287]
[1747753144613,4.05122057,2468.4,2468.3,13.13500742]
[1747753145320,4.05122057,2468.4,2468.3,8.88547872]
[1747753145522,4.05122057,2468.4,2468.3,0.38647872]
[1747753145724,4.05122057,2468.4,2468.3,8.33547872]
[1747753145871,4.87482057,2468.4,2468.3,7.949]
[1747753146273,4.05122057,2468.4,2468.3,7.949]
[1747753146711,4.05186385,2468.0,2467.9,18.03]
[1747753146909,4.05186385,2468.0,2467.9,43.80042477]
[1747753147325,4.05186385,2468.0,2467.9,20.8587]
[1747753147525,4.05186385,2468.0,2467.9,25.429]
[1747753147885,4.05186385,2468.0,2467.9,25.979]
[1747753148580,4.05186385,2468.0,2467.9,26.7848]
[1747753148890,4.05186385,2468.0,2467.9,27.17237156]
[1747753149092,4.05186385,2468.0,2467.9,29.88960872]
[1747753150310,4.05186385,2468.0,2467.9,46.27285772]
[1747753150628,4.05122744,2468.4,2468.2,0.55]
[1747753150781,4.05122744,2468.4,2468.3,5.879845]
[1747753150982,4.05122744,2468.4,2468.3,4.6869125]
[1747753151331,4.05094794,2468.6,2468.4,0.55]
[1747753151623,4.05038681,2468.9,2468.6,0.55]
[1747753152401,4.05071495,2468.7,2468.6,0.55]
[1747753152604,4.05071495,2468.7,2468.6,6.131031]
[1747753152805,4.05071495,2468.7,2468.6,4.47161326]
[1747753152990,4.05071495,2468.7,2468.6,5.16125426]
[1747753153194,4.05071495,2468.7,2468.6,1.83433182]
[1747753153515,4.05071495,2468.7,2468.6,0.38757156]
[1747753154102,4.05071495,2468.7,2468.6,0.93757156]
[1747753154309,4.05071495,2468.7,2468.6,17.32082056]
[1747753154516,4.05071495,2468.7,2468.6,25.26982056]
[1747753155316,4.05071495,2468.7,2468.6,24.77236156]
[1747753155517,4.05071495,2468.7,2468.6,27.90492871]
[1747753155719,4.05064961,2468.8,2468.6,27.90492871]
[1747753155927,4.04973069,2469.3,2468.7,17.687949]
[1747753156101,4.05022276,2469.0,2468.9,0.55]
[1747753156296,4.05022276,2469.0,2468.9,12.486895]
[1747753156496,4.05022276,2469.0,2468.9,11.428975]
[1747753156724,4.05022276,2469.0,2468.9,5.98692136]
[1747753157038,4.05022276,2469.0,2468.9,10.79026436]
[1747753157334,4.05022276,2469.0,2468.9,13.47446436]
[1747753157687,4.05011986,2469.1,2468.9,13.47446436]
[1747753157903,4.05011986,2469.1,2469.0,20.06805259]
[1747753158734,4.05011986,2469.1,2469.0,20.87575259]
[1747753158937,4.05011986,2469.1,2469.0,11.63280359]
[1747753159290,4.05011986,2469.1,2469.0,16.57817159]
[1747753159495,4.05011986,2469.1,2469.0,5.16002659]
[1747753159723,4.05011986,2469.1,2469.0,7.947]
[1747753160115,4.05022276,2469.0,2468.9,0.41319436]
[1747753160317,4.05038681,2468.9,2468.8,18.8212]
[1747753160518,4.05038681,2468.9,2468.8,35.038909]
[1747753160706,4.05038681,2468.9,2468.8,34.779532]
[1747753160907,4.05038681,2468.9,2468.8,36.83419903]
[1747753161103,4.05038681,2468.9,2468.8,35.83232203]
[1747753161403,4.05038681,2468.9,2468.8,25.81931915]
[1747753161694,4.05038681,2468.9,2468.8,42.75256815]
[1747753162143,4.04974959,2469.3,2469.0,0.8306]
[1747753162144,4.04982474,2469.3,2469.0,0.8306]
[1747753162443,4.0498947,2469.2,2469.1,3.940367]
[1747753162605,4.05005872,2469.1,2469.0,1.3806]
[1747753162808,4.05005872,2469.1,2469.0,11.90132911]
[1747753163042,4.05005872,2469.1,2469.0,16.35638911]
[1747753163412,4.05005872,2469.1,2469.0,16.74270826]
[1747753164114,4.04923874,2469.6,2469.1,0.55]
[1747753164312,4.04947122,2469.5,2469.1,0.55]
[1747753164530,4.04947122,2469.5,2469.4,0.55]
[1747753164742,4.04947122,2469.5,2469.4,7.066869]
[1747753165047,4.04956669,2469.4,2469.3,1.3059]
[1747753165246,4.04956669,2469.4,2469.3,3.712978]
[1747753166159,4.04950166,2469.5,2469.4,0.55]
[1747753166325,4.04950166,2469.5,2469.4,12.44029828]
[1747753167142,4.04950166,2469.5,2469.4,11.08839628]
[1747753168112,4.04950166,2469.5,2469.4,11.47423013]
[1747753170257,4.04950166,2469.5,2469.4,10.21211613]
[1747753170552,4.04950166,2469.5,2469.4,1.49000813]
[1747753170746,4.04950166,2469.5,2469.4,9.43600813]
[1747753171720,4.04950166,2469.5,2469.4,9.05017428]
[1747753172256,4.04950166,2469.5,2469.4,7.946]
[1747753172635,4.05005872,2469.1,2469.0,9.37192911]
[1747753172857,4.05005872,2469.1,2469.0,23.38592911]
[1747753173044,4.05005872,2469.1,2469.0,25.49143011]
[1747753173423,4.05005872,2469.1,2469.0,25.8771918]
[1747753174428,4.05005872,2469.1,2469.0,11.8631918]
[1747753174648,4.05005872,2469.1,2469.0,25.8681918]
[1747753175980,4.05005872,2469.1,2469.0,19.7991918]
[1747753176149,4.05005872,2469.1,2469.0,25.8681918]
[1747753176980,4.80744877,2469.8,2469.1,0.55]
[1747753176981,4.04977223,2469.3,2469.1,0.55]
[1747753177284,4.04977223,2469.3,2469.2,14.61529118]
[1747753177773,4.04977223,2469.3,2469.2,14.52522918]
[1747753178673,4.04977223,2469.3,2469.2,14.31977318]
[1747753178870,4.04977223,2469.3,2469.2,14.70553487]
[1747753179687,4.04977223,2469.3,2469.2,7.70981287]
[1747753179885,4.04977223,2469.3,2469.2,13.05899369]
[1747753183793,4.04977223,2469.3,2469.2,8.32176169]
[1747753184683,4.81057223,2469.3,2469.2,8.32176169]
[1747753185252,4.81057223,2469.3,2469.2,0.38576169]
[1747753185452,4.81057223,2469.3,2469.2,8.32176169]
[1747753185684,4.81057223,2469.3,2469.2,7.936]
[1747753187892,4.81057223,2469.3,2468.8,17.486]
[1747753187893,4.80108681,2468.9,2468.8,17.486]
[1747753188279,4.82425087,2468.8,2468.7,7.937]
[1747753190068,19.18473846,2468.8,2468.7,7.937]
[1747753191201,4.84913553,2468.2,2468.1,17.482]
[1747753191417,4.84913553,2468.2,2468.1,25.42]
[1747753193786,4.84913553,2468.2,2468.1,17.482]
[1747753194116,4.84913553,2468.2,2468.1,25.421]
[1747753196182,4.05153553,2468.2,2468.1,27.9631]
[1747753196905,4.05153553,2468.2,2468.1,28.7829]
[1747753198420,4.05202804,2467.9,2467.8,0.6327083]
[1747753199747,4.05202804,2467.9,2467.8,8.5717083]
[1747753200251,4.05202804,2467.9,2467.8,0.6327083]
[1747753200556,4.83392804,2467.9,2467.8,7.939]
[1747753200916,4.05202804,2467.9,2467.8,7.939]
[1747753201429,4.05202804,2467.9,2467.8,8.37616213]
[1747753201627,4.05202804,2467.9,2467.8,9.16286213]
[1747753202034,4.05202804,2467.9,2467.8,17.39864913]
[1747753202233,4.05195132,2468.0,2467.9,0.55]
[1747753203457,4.05202804,2467.9,2467.8,0.7867]
[1747753203636,4.0526849,2467.5,2467.4,1.18331309]
[1747753203839,4.0526849,2467.5,2467.4,13.23886831]
[1747753204043,4.0526849,2467.5,2467.4,21.12707231]
[1747753204236,4.0526849,2467.5,2467.4,15.88859331]
[1747753204438,4.0526849,2467.5,2467.4,0.63331309]
[1747753204646,4.0526849,2467.5,2467.4,8.57331309]
[1747753205539,4.0526849,2467.5,2467.4,8.56331309]
[1747753206767,4.0526849,2467.5,2467.4,0.63331309]
[1747753206944,4.0526849,2467.5,2467.4,8.56331309]
[1747753207658,4.0526849,2467.5,2467.4,0.63331309]
[1747753207860,4.0526849,2467.5,2467.4,8.56431309]
[1747753208558,4.8427849,2467.5,2467.4,8.56431309]
[1747753208983,4.8427849,2467.5,2467.4,7.931]
[1747753210451,4.0526849,2467.5,2467.4,7.931]
[1747753211658,4.05301341,2467.3,2467.2,17.491]
[1747753211855,4.05301341,2467.3,2467.2,25.423]
[1747753212370,4.05301341,2467.3,2467.2,17.491]
[1747753212576,4.05301341,2467.3,2467.2,25.423]
[1747753213919,4.85691341,2467.3,2467.2,25.423]
[1747753214096,4.05301341,2467.3,2467.2,25.423]
[1747753220240,4.05301341,2467.3,2467.2,27.81866852]
[1747753220735,4.05301341,2467.3,2467.2,19.88666852]
[1747753220938,4.05301341,2467.3,2467.2,25.424]
[1747753221440,4.05301341,2467.3,2467.2,34.294948]
[1747753221600,4.05301341,2467.3,2467.2,34.844948]
[1747753222218,4.05234771,2467.8,2467.3,1.3322]
[1747753222532,4.05234771,2467.8,2467.6,1.3322]
[1747753222533,4.05246403,2467.7,2467.6,1.3322]
[1747753222736,4.05170473,2468.1,2467.6,1.3322]
[1747753222737,4.05207667,2467.9,2467.7,11.374978]
[1747753222907,4.05219223,2467.8,2466.8,0.48130991]
[1747753223106,0.41234774,2469.0,2467.3,0.7822]
[1747753223107,4.05284915,2467.4,2467.3,0.7822]
[1747753223311,4.05284915,2467.4,2467.3,8.7152]
[1747753223519,4.05284915,2467.4,2467.3,11.37448998]
[1747753224133,4.05301341,2467.3,2467.2,17.491]
[1747753224329,4.05301341,2467.3,2467.2,25.424]
[1747753226598,4.05301341,2467.3,2467.2,38.585181]
[1747753226802,4.05301341,2467.3,2467.2,33.743181]
[1747753227103,4.05301341,2467.3,2467.2,25.424]
[1747753227411,4.05301341,2467.3,2467.2,37.275348]
[1747753227608,4.05301341,2467.3,2467.2,37.587416]
[1747753227836,4.05301341,2467.3,2467.2,29.654416]
[1747753228058,4.05301341,2467.3,2467.2,37.587416]
[1747753228200,4.05301341,2467.3,2467.2,23.8255316]
[1747753228401,4.05301341,2467.3,2467.2,25.81083926]
[1747753229208,4.05301341,2467.3,2467.2,31.12323726]
[1747753229844,4.05301341,2467.3,2467.2,29.29891526]
[1747753230047,4.05301341,2467.3,2467.2,25.81083926]
[1747753232215,4.05301341,2467.3,2467.2,25.424]
[1747753233649,0.8285,2468.9,2467.5,0.55]
[1747753233867,4.05055087,2468.8,2467.7,1.3745]
[1747753234032,4.05202804,2467.9,2467.8,7.933]
[1747753234217,4.05202804,2467.9,2467.8,10.062]
[1747753234619,4.05202804,2467.9,2467.7,0.8245]
[1747753234620,4.05219223,2467.8,2467.7,0.8245]
[1747753234815,4.05219223,2467.8,2467.7,10.7872]
[1747753235014,4.05219223,2467.8,2467.7,17.788983]
[1747753235215,4.05219223,2467.8,2467.7,0.8245]
[1747753235450,4.05219223,2467.8,2467.7,9.19482381]
[1747753236452,4.05219223,2467.8,2467.7,0.8245]
[1747753236655,4.05202804,2467.9,2467.7,7.983]
[1747753237139,4.05219223,2467.8,2467.7,7.983]
[1747753237352,4.05219223,2467.8,2467.7,15.5035]
[1747753237560,4.05219223,2467.8,2467.7,11.7451]
[1747753238861,4.05219223,2467.8,2467.7,12.13212212]
[1747753239862,4.05219223,2467.8,2467.7,2.53602212]
[1747753240169,4.05219223,2467.8,2467.7,10.83222212]
[1747753240349,4.05219223,2467.8,2467.7,8.37002212]
[1747753240958,4.05219223,2467.8,2467.7,8.36902212]
[1747753241167,4.05202804,2467.9,2467.7,25.51117112]
[1747753241346,4.05203779,2467.9,2467.8,17.29307011]
[1747753241527,4.05203779,2467.9,2467.8,11.79832011]
[1747753241727,0.7899,2468.7,2468.1,0.55]
[1747753241936,4.05137138,2468.3,2468.2,25.51550663]
[1747753242136,4.05137138,2468.3,2468.2,34.80610066]
[1747753242623,4.05137138,2468.3,2468.2,35.19312278]
[1747753242962,4.05130035,2468.4,2468.3,0.55]
[1747753243482,4.05102522,2468.6,2468.5,0.55]
[1747753243624,4.05102522,2468.6,2468.5,18.7594339]
[1747753243935,4.05104314,2468.5,2468.4,0.7786]
[1747753244141,4.05104314,2468.5,2468.4,11.993783]
[1747753244371,4.05104314,2468.5,2468.4,11.682583]
[1747753245029,4.05104314,2468.5,2468.4,3.701583]
[1747753245230,4.05104314,2468.5,2468.4,12.62814281]
[1747753245442,4.05092116,2468.6,2468.4,15.94194037]
[1747753245730,4.0508622,2468.7,2468.5,14.294094]
[1747753246236,4.05048121,2468.9,2468.8,0.55]
[1747753246547,4.05048121,2468.9,2468.8,16.933249]
[1747753246741,4.05048121,2468.9,2468.8,4.708378]
[1747753246942,4.05048121,2468.9,2468.8,4.406059]
[1747753247142,4.05048121,2468.9,2468.8,12.387059]
[1747753247531,4.05048121,2468.9,2468.8,11.837059]
[1747753247730,4.05048121,2468.9,2468.8,7.981]
[1747753248453,4.05048121,2468.9,2468.8,9.40545]
[1747753248651,4.05012778,2469.1,2468.9,0.55]
[1747753248652,4.050294,2469.0,2468.9,0.55]
[1747753248859,4.050294,2469.0,2468.9,15.928631]
[1747753249062,4.04924331,2469.6,2468.9,15.928631]
[1747753249233,4.04841909,2470.1,2469.4,0.55]
[1747753249434,4.04923874,2469.6,2469.5,25.50748636]
[1747753249767,4.04923874,2469.6,2469.5,35.76813264]
[1747753249971,4.047566,2470.7,2469.5,35.76813264]
[1747753249972,4.8420854,2470.4,2469.8,0.55]
[1747753250174,4.04872554,2470.0,2469.8,0.55]
[1747753250472,4.04858299,2470.0,2469.9,3.148647]
[1747753250677,4.04858299,2470.0,2469.9,5.670759]
[1747753250860,4.04858299,2470.0,2469.9,5.4902029]
[1747753251478,4.04923874,2469.6,2469.5,17.487]
[1747753251838,4.04923874,2469.6,2469.5,25.467]
[1747753253251,4.04923874,2469.6,2469.5,41.850249]
[1747753253455,4.04923874,2469.6,2469.5,29.5694]
[1747753254687,4.04923874,2469.6,2469.5,30.1194]
[1747753254870,4.04923874,2469.6,2469.5,33.53639464]
[1747753256093,4.04923874,2469.6,2469.5,34.29509464]
[1747753257148,4.04910675,2469.7,2469.5,34.29509464]
[1747753257149,4.04907478,2469.7,2469.6,0.55]
[1747753257390,4.04907478,2469.7,2469.6,16.383249]
[1747753257585,4.04907478,2469.7,2469.6,14.50603788]
[1747753257914,4.04923874,2469.6,2469.5,17.487]
[1747753258063,4.04923874,2469.6,2469.5,25.464]
[1747753259570,4.04923874,2469.6,2469.5,31.234]
[1747753259904,4.04923874,2469.6,2469.5,22.193352]
[1747753260099,4.04923874,2469.6,2469.5,30.170352]
[1747753260394,4.04923874,2469.6,2469.5,33.22776978]
[1747753261400,4.04923874,2469.6,2469.5,33.22676978]
[1747753261564,4.04896707,2469.8,2469.6,0.55]
[1747753261905,4.04907478,2469.7,2469.6,0.55]
[1747753262286,4.04907478,2469.7,2469.6,7.515594]
[1747753262605,4.04907478,2469.7,2469.6,10.50555276]
[1747753262825,4.04923874,2469.6,2469.5,17.487]
[1747753262965,4.04923874,2469.6,2469.5,25.463]
[1747753264198,0.792,2469.9,2469.5,25.463]
[1747753264427,4.04886264,2469.9,2469.7,0.55]
[1747753264570,4.04792746,2470.4,2469.8,11.4257669]
[1747753264764,4.04865091,2470.0,2469.8,1.7710749]
[1747753265000,4.04865091,2470.0,2469.9,12.456126]
[1747753265167,4.04865091,2470.0,2469.9,4.94864]
[1747753265668,4.04865091,2470.0,2469.9,11.748812]
[1747753265909,4.04865091,2470.0,2469.9,11.198812]
[1747753266262,4.04865091,2470.0,2469.9,3.131812]
[1747753266579,4.04923874,2469.6,2469.5,17.487]
[1747753266776,4.83933874,2469.6,2469.5,25.554]
[1747753267190,4.04923874,2469.6,2469.5,25.554]
[1747753267789,4.04923874,2469.6,2469.5,25.553]
[1747753269967,4.04841909,2470.1,2469.5,39.704866]
[1747753270171,4.04841909,2470.1,2469.5,29.4341]
[1747753270172,4.04923874,2469.6,2469.5,29.4341]
[1747753270383,4.04923874,2469.6,2469.5,45.817349]
[1747753270792,4.04923874,2469.6,2469.5,46.20279068]
[1747753271304,4.04858299,2470.0,2469.6,0.55]
[1747753271305,4.04873956,2470.0,2469.6,0.55]
[1747753271478,4.04805415,2470.4,2469.8,0.55]
[1747753271679,4.04833224,2470.2,2470.0,0.55]
[1747753271877,4.04710834,2470.9,2470.3,1.355]
[1747753272200,4.04776361,2470.5,2470.4,17.479]
[1747753272504,4.04776361,2470.5,2470.4,28.97474168]
[1747753272704,4.04776361,2470.5,2470.4,25.93044168]
[1747753272916,4.04776361,2470.5,2470.4,32.74287568]
[1747753273074,4.04776361,2470.5,2470.4,29.97844168]
[1747753273274,4.04776361,2470.5,2470.4,25.93044168]
[1747753273617,4.04776361,2470.5,2470.4,28.78264168]
[1747753274017,4.82846361,2470.5,2470.4,25.544]
[1747753280340,4.82846361,2470.5,2470.4,17.479]
[1747753280644,4.82846361,2470.5,2470.4,25.544]
[1747753283045,4.82846361,2470.5,2470.4,25.545]
[1747753283269,4.04891084,2469.8,2469.7,17.477]
[1747753283558,4.04891084,2469.8,2469.7,25.543]
[1747753283559,4.81661084,2469.8,2469.7,25.543]
[1747753284814,4.04891084,2469.8,2469.7,25.543]
[1747753285211,4.04891084,2469.8,2469.7,28.0973]
[1747753285443,4.04891084,2469.8,2469.7,34.520127]
[1747753285648,4.04891084,2469.8,2469.7,32.906838]
[1747753285815,4.04891084,2469.8,2469.7,31.159128]
[1747753287312,4.04891084,2469.8,2469.7,31.54598905]
[1747753287546,4.04891084,2469.8,2469.7,25.92986105]
[1747753287923,4.04891084,2469.8,2469.7,30.38124105]
[1747753288245,4.04891084,2469.8,2469.7,29.83309905]
[1747753288451,4.04891084,2469.8,2469.7,25.92986105]
[1747753289320,4.04891084,2469.8,2469.7,38.36104905]
[1747753289526,4.04891084,2469.8,2469.7,40.98597593]
[1747753289743,4.04891084,2469.8,2469.7,40.27938693]
[1747753291064,4.04891084,2469.8,2469.7,39.16587693]
[1747753291259,4.04891084,2469.8,2469.7,36.30836893]
[1747753291961,4.04891084,2469.8,2469.7,29.50051105]
[1747753292169,4.87741084,2469.8,2469.7,25.92986105]
[1747753293544,4.87741084,2469.8,2469.7,25.543]
[1747753294769,4.09548084,2469.8,2469.7,25.543]
[1747753295268,4.09548084,2469.8,2469.7,25.5]
[1747753295967,4.09548084,2469.8,2469.7,17.477]
[1747753296146,4.04548084,2469.8,2469.7,25.5]
[1747753300231,4.04548084,2469.8,2469.7,17.477]
[1747753300437,4.04548084,2469.8,2469.7,25.501]
[1747753304937,4.05071495,2468.7,2468.4,0.7673]
[1747753305142,4.05087904,2468.6,2468.5,17.481]
[1747753305378,4.05087904,2468.6,2468.5,25.505]
[1747753305687,4.84547904,2468.6,2468.5,25.505]
[1747753307175,4.05087904,2468.6,2468.5,25.505]
[1747753315676,4.05087904,2468.6,2468.5,27.91916394]
[1747753316825,4.05071495,2468.7,2468.6,1.3775]
[1747753317030,4.05039241,2468.9,2468.7,0.8275]
[1747753317177,4.05055087,2468.8,2468.7,0.8275]
[1747753317535,4.05055087,2468.8,2468.7,17.760749]
[1747753317672,4.05055087,2468.8,2468.7,21.66311188]
[1747753319814,4.05055087,2468.8,2468.7,13.75637388]
[1747753320217,4.05055087,2468.8,2468.7,4.72986288]